fUSD/lending_fUSD_20260510
["ID","MTS","AMOUNT","RATE_DAILY","PERIOD"]
[421952623,1778367040000,-1482.63749678,0.00040837,2]
[421952652,1778367040000,-1000.0,0.00041037,21]
[421952654,1778367040000,-151.0,0.00041041,120]
[421952667,1778367040000,-500.0,0.00041095,2]
[421952665,1778367040000,-500.0,0.00041095,2]
[421952673,1778367040000,-500.0,0.00041095,2]
[421952677,1778367040000,-500.0,0.00041095,2]
[421952679,1778367040000,-500.0,0.00041095,2]
[421952681,1778367040000,-500.0,0.00041095,2]
[421952671,1778367040000,-500.0,0.00041095,2]
[421952669,1778367040000,-500.0,0.00041095,2]
[421952659,1778367040000,-500.0,0.00041095,2]
[421952662,1778367040000,-500.0,0.00041095,2]
[421952658,1778367040000,-500.0,0.00041095,2]
[421952786,1778367041000,-500.0,0.00041095,2]
[421952798,1778367041000,-500.0,0.00041095,2]
[421952815,1778367041000,-150.0,0.00041096,120]
[421952792,1778367041000,-500.0,0.00041095,2]
[421952805,1778367041000,-160.05,0.00041096,120]
[421952796,1778367041000,-500.0,0.00041095,2]
[421952800,1778367041000,-500.0,0.00041095,2]
[421952806,1778367041000,-150.0,0.00041096,120]
[421952809,1778367041000,-150.0,0.00041096,120]
[421952811,1778367041000,-150.0,0.00041096,120]
[421952850,1778367041000,-961.21,0.0004125,120]
[421952816,1778367041000,-155.26736171,0.00041096,120]
[421952846,1778367041000,-2400.0,0.00041187,30]
[421952844,1778367041000,-182.0,0.000411,120]
[421952848,1778367041000,-495.56878517,0.00041188,120]
[421952855,1778367041000,-151.0,0.000413,120]
[421952857,1778367041000,-495.56878517,0.00041356,120]
[421952853,1778367041000,-1482.63749678,0.00041294,2]
[421952859,1778367041000,-353.0,0.00041388,2]
[421952802,1778367041000,-173.39733273,0.00041095,2]
[421952869,1778367041000,-500.0,0.00041391,120]
[421952813,1778367041000,-150.0,0.00041096,120]
[421952794,1778367041000,-500.0,0.00041095,2]
[421952766,1778367041000,-500.0,0.00041095,2]
[421952762,1778367041000,-500.0,0.00041095,2]
[421952871,1778367041000,-500.0,0.00041391,120]
[421952744,1778367041000,-500.0,0.00041095,2]
[421952741,1778367041000,-500.0,0.00041095,2]
[421952743,1778367041000,-500.0,0.00041095,2]
[421952747,1778367041000,-500.0,0.00041095,2]
[421952749,1778367041000,-500.0,0.00041095,2]
[421952753,1778367041000,-500.0,0.00041095,2]
[421952751,1778367041000,-500.0,0.00041095,2]
[421952756,1778367041000,-500.0,0.00041095,2]
[421952755,1778367041000,-500.0,0.00041095,2]
[421952778,1778367041000,-500.0,0.00041095,2]
[421952760,1778367041000,-500.0,0.00041095,2]
[421952772,1778367041000,-500.0,0.00041095,2]
[421952780,1778367041000,-500.0,0.00041095,2]
[421952770,1778367041000,-500.0,0.00041095,2]
[421952776,1778367041000,-500.0,0.00041095,2]
[421952768,1778367041000,-500.0,0.00041095,2]
[421952758,1778367041000,-500.0,0.00041095,2]
[421952774,1778367041000,-500.0,0.00041095,2]
[421952782,1778367041000,-500.0,0.00041095,2]
[421952764,1778367041000,-500.0,0.00041095,2]
[421952784,1778367041000,-500.0,0.00041095,2]
[421952870,1778367041000,-500.0,0.00041391,120]
[421952861,1778367041000,-3012.9464234,0.00041391,2]
[421952872,1778367041000,-500.0,0.00041391,120]
[421952910,1778367041000,-577.10389741,0.00041473,10]
[421952901,1778367041000,-500.0,0.00041391,120]
[421952908,1778367041000,-500.0,0.00041473,10]
[421952900,1778367041000,-500.0,0.00041391,120]
[421952902,1778367041000,-500.0,0.00041391,120]
[421952904,1778367041000,-523.0,0.00041391,120]
[421952907,1778367041000,-1794.6713723,0.000414,15]
[421952930,1778367041000,-546219.05136113,0.000415,30]
[421952913,1778367041000,-500.0,0.00041473,10]
[421952927,1778367041000,-300.0,0.00041499,30]
[421952928,1778367041000,-300.0,0.00041499,30]
[421952925,1778367041000,-1792.87,0.00041491,2]
[421952924,1778367041000,-698.95886867,0.00041489,10]
[421952914,1778367041000,-150.0,0.00041473,10]
[421952919,1778367041000,-450.0,0.00041481,10]
[421952916,1778367041000,-250.0,0.00041475,10]
[421952917,1778367041000,-350.0,0.00041478,10]
[421952922,1778367041000,-650.0,0.00041486,10]
[421952921,1778367041000,-550.0,0.00041484,10]
[421952933,1778367041000,-495.56878517,0.00041523,120]
[421952934,1778367041000,-152.0,0.00041538,7]
[421952899,1778367041000,-500.0,0.00041391,120]
[421952911,1778367041000,-500.0,0.00041473,2]
[421952931,1778367041000,-6000.0,0.000415,120]
[421952895,1778367041000,-500.0,0.00041391,120]
[421952905,1778367041000,-155.04409265,0.000414,15]
[421952873,1778367041000,-500.0,0.00041391,120]
[421952875,1778367041000,-500.0,0.00041391,120]
[421952867,1778367041000,-500.0,0.00041391,120]
[421952863,1778367041000,-276.52752926,0.00041391,2]
[421952865,1778367041000,-500.0,0.00041391,120]
[421952878,1778367041000,-500.0,0.00041391,120]
[421952877,1778367041000,-500.0,0.00041391,120]
[421952882,1778367041000,-500.0,0.00041391,120]
[421952888,1778367041000,-500.0,0.00041391,120]
[421952881,1778367041000,-500.0,0.00041391,120]
[421952876,1778367041000,-500.0,0.00041391,120]
[421952885,1778367041000,-500.0,0.00041391,120]
[421952891,1778367041000,-500.0,0.00041391,120]
[421952889,1778367041000,-500.0,0.00041391,120]
[421952883,1778367041000,-500.0,0.00041391,120]
[421952880,1778367041000,-500.0,0.00041391,120]
[421952892,1778367041000,-500.0,0.00041391,120]
[421952886,1778367041000,-500.0,0.00041391,120]
[421952887,1778367041000,-500.0,0.00041391,120]
[421952897,1778367041000,-500.0,0.00041391,120]
[421952893,1778367041000,-500.0,0.00041391,120]
[421952896,1778367041000,-500.0,0.00041391,120]
[421953011,1778367042000,-250.0,0.00041851,120]
[421953015,1778367042000,-151.0,0.00041855,120]
[421952988,1778367042000,-250.0,0.00041807,120]
[421953006,1778367042000,-1000.0,0.0004184,120]
[421952999,1778367042000,-1000.0,0.0004182,120]
[421953000,1778367042000,-250.0,0.00041823,120]
[421952986,1778367042000,-160.0,0.000418,70]
[421952990,1778367042000,-250.0,0.00041808,120]
[421952978,1778367042000,-250.0,0.0004179,120]
[421952997,1778367042000,-1000.0,0.0004181,120]
[421953013,1778367042000,-151.0,0.00041855,120]
[421952982,1778367042000,-1482.63749678,0.00041798,2]
[421953017,1778367042000,-151.0,0.00041855,7]
[421953037,1778367042000,-151.0,0.00041855,120]
[421953004,1778367042000,-250.0,0.00041838,120]
[421953003,1778367042000,-1000.0,0.0004183,120]
[421953019,1778367042000,-151.0,0.00041855,7]
[421953021,1778367042000,-151.0,0.00041855,7]
[421953023,1778367042000,-151.0,0.00041855,7]
[421953028,1778367042000,-151.0,0.00041855,7]
[421953036,1778367042000,-151.0,0.00041855,120]
[421953045,1778367042000,-151.0,0.00041855,30]
[421953032,1778367042000,-151.0,0.00041855,7]
[421953030,1778367042000,-151.0,0.00041855,7]
[421953039,1778367042000,-151.0,0.00041855,120]
[421952975,1778367042000,-1000.0,0.00041774,15]
[421953009,1778367042000,-1000.0,0.0004185,120]
[421952976,1778367042000,-158.8797288,0.00041774,15]
[421952942,1778367042000,-495.56878517,0.00041691,120]
[421952980,1778367042000,-1000.0,0.0004179,120]
[421952947,1778367042000,-182.0,0.000417,120]
[421952944,1778367042000,-1143.1,0.00041694,120]
[421952951,1778367042000,-152.0,0.00041733,7]
[421952949,1778367042000,-250.0,0.00041701,120]
[421953034,1778367042000,-214.216042,0.00041855,7]
[421952952,1778367042000,-152.0,0.00041733,7]
[421952939,1778367042000,-150.0,0.00041652,120]
[421952936,1778367042000,-1482.63749678,0.00041561,2]
[421952941,1778367042000,-250.0,0.00041674,120]
[421952946,1778367042000,-1055.0,0.00041699,7]
[421952938,1778367042000,-250.0,0.00041644,120]
[421952954,1778367042000,-980.43,0.0004175,120]
[421952995,1778367042000,-250.0,0.00041808,120]
[421952955,1778367042000,-166.02135317,0.00041755,4]
[421952971,1778367042000,-1000.0,0.00041774,15]
[421952968,1778367042000,-1068.77663516,0.00041774,15]
[421952969,1778367042000,-1000.0,0.00041774,15]
[421952965,1778367042000,-1000.0,0.00041774,15]
[421952958,1778367042000,-200.0,0.0004176,120]
[421952966,1778367042000,-1000.0,0.00041774,15]
[421952963,1778367042000,-1000.0,0.00041774,15]
[421952960,1778367042000,-1000.0,0.00041774,15]
[421952973,1778367042000,-1000.0,0.00041774,15]
[421952961,1778367042000,-1000.0,0.00041774,15]
[421952992,1778367042000,-250.0,0.00041808,120]
[421952984,1778367042000,-1000.0,0.000418,120]
[421952957,1778367042000,-166.65528512,0.00041757,2]
[421953026,1778367042000,-151.0,0.00041855,7]
[421953152,1778367042000,-3325.38029583,0.00041857,2]
[421953044,1778367042000,-151.0,0.00041855,30]
[421953112,1778367042000,-255.47492746,0.00041857,2]
[421953124,1778367042000,-559.13392248,0.00041857,2]
[421953104,1778367042000,-2774.67689768,0.00041857,2]
[421953116,1778367042000,-1293.41245811,0.00041857,2]
[421953119,1778367042000,-4018.28914917,0.00041857,60]
[421953122,1778367042000,-1068.05995046,0.00041857,2]
[421953126,1778367042000,-1344.9208679,0.00041857,2]
[421953139,1778367042000,-643.0,0.00041857,2]
[421953143,1778367042000,-995.1299293,0.00041857,2]
[421953131,1778367042000,-2253.82369562,0.00041857,2]
[421953137,1778367042000,-188.71264723,0.00041857,2]
[421953129,1778367042000,-1221.0,0.00041857,4]
[421953106,1778367042000,-155.15461554,0.00041857,2]
[421953135,1778367042000,-503.72534852,0.00041857,2]
[421953163,1778367042000,-500.0,0.00041857,120]
[421953150,1778367042000,-587.53564704,0.00041857,2]
[421953156,1778367042000,-500.0,0.00041857,120]
[421953160,1778367042000,-500.0,0.00041857,120]
[421953154,1778367042000,-179.79999066,0.00041857,2]
[421953165,1778367042000,-500.0,0.00041857,120]
[421953171,1778367042000,-500.0,0.00041857,120]
[421953158,1778367042000,-500.0,0.00041857,120]
[421953173,1778367042000,-500.0,0.00041857,120]
[421953168,1778367042000,-500.0,0.00041857,120]
[421953175,1778367042000,-500.0,0.00041857,120]
[421953041,1778367042000,-163.266789,0.00041855,120]
[421953141,1778367042000,-2033.47772038,0.00041857,4]
[421953108,1778367042000,-1720.06790091,0.00041857,2]
[421953133,1778367042000,-766.50042178,0.00041857,2]
[421953100,1778367042000,-539.32279789,0.00041857,120]
[421953098,1778367042000,-512.67836023,0.00041857,120]
[421953056,1778367042000,-151.0,0.00041856,120]
[421953066,1778367042000,-151.0,0.00041856,120]
[421953054,1778367042000,-151.0,0.00041856,120]
[421953062,1778367042000,-151.0,0.00041856,120]
[421953064,1778367042000,-248.480614,0.00041856,120]
[421953070,1778367042000,-151.0,0.00041856,120]
[421953047,1778367042000,-151.0,0.00041855,30]
[421953051,1778367042000,-151.0,0.00041856,14]
[421953068,1778367042000,-151.0,0.00041856,120]
[421953060,1778367042000,-151.0,0.00041856,120]
[421953049,1778367042000,-151.0,0.00041855,30]
[421953083,1778367042000,-156.0,0.00041856,120]
[421953058,1778367042000,-151.0,0.00041856,120]
[421953114,1778367042000,-500.0,0.00041857,2]
[421953102,1778367042000,-29888.0,0.00041857,30]
[421953096,1778367042000,-500.0,0.00041857,120]
[421953079,1778367042000,-161.0,0.00041856,120]
[421953092,1778367042000,-77448.06822978,0.00041857,30]
[421953085,1778367042000,-156.0,0.00041856,120]
[421953074,1778367042000,-162.0,0.00041856,120]
[421953081,1778367042000,-156.0,0.00041856,120]
[421953076,1778367042000,-155.0,0.00041856,120]
[421953089,1778367042000,-225448.32496073,0.00041856,49]
[421953072,1778367042000,-250.0,0.00041856,120]
[421953087,1778367042000,-204.47170256,0.00041856,120]
[421953094,1778367042000,-500.0,0.00041857,120]
[421953254,1778367043000,-1881.54816263,0.00041857,2]
[421953265,1778367043000,-2500.48684053,0.00041857,2]
[421953274,1778367043000,-471.92476084,0.00041857,2]
[421953273,1778367043000,-897.69327901,0.00041857,2]
[421953263,1778367043000,-412.41292104,0.00041857,2]
[421953230,1778367043000,-350.40369593,0.00041857,2]
[421953258,1778367043000,-201233.47827962,0.00041857,2]
[421953256,1778367043000,-1145.5196884,0.00041857,2]
[421953250,1778367043000,-2259.04228798,0.00041857,2]
[421953252,1778367043000,-2168.83137151,0.00041857,2]
[421953272,1778367043000,-2227.98787211,0.00041857,2]
[421953247,1778367043000,-373.68646347,0.00041857,2]
[421953260,1778367043000,-279.93338038,0.00041857,2]
[421953267,1778367043000,-884.57437773,0.00041857,2]
[421953278,1778367043000,-518.66871217,0.00041857,2]
[421953269,1778367043000,-207.83778861,0.00041857,2]
[421953276,1778367043000,-610.0,0.00041857,2]
[421953275,1778367043000,-150.0,0.00041857,2]
[421953286,1778367043000,-160.68883665,0.00041857,2]
[421953287,1778367043000,-199.85466296,0.00041857,2]
[421953282,1778367043000,-201.46147981,0.00041857,2]
[421953288,1778367043000,-1602.99277468,0.00041857,2]
[421953284,1778367043000,-379.0,0.00041857,2]
[421953279,1778367043000,-204.39896071,0.00041857,2]
[421953283,1778367043000,-1530.48864677,0.00041857,2]
[421953280,1778367043000,-760.98812276,0.00041857,2]
[421953277,1778367043000,-363.10694038,0.00041857,2]
[421953270,1778367043000,-289.75363149,0.00041857,2]
[421953243,1778367043000,-561.64242884,0.00041857,2]
[421953180,1778367043000,-500.0,0.00041857,120]
[421953245,1778367043000,-1036.38155795,0.00041857,2]
[421953281,1778367043000,-5132.53140152,0.00041857,120]
[421953182,1778367043000,-500.0,0.00041857,120]
[421953184,1778367043000,-500.0,0.00041857,120]
[421953186,1778367043000,-500.0,0.00041857,120]
[421953188,1778367043000,-500.0,0.00041857,120]
[421953178,1778367043000,-500.0,0.00041857,120]
[421953193,1778367043000,-500.0,0.00041857,120]
[421953191,1778367043000,-500.0,0.00041857,120]
[421953195,1778367043000,-500.0,0.00041857,120]
[421953197,1778367043000,-500.0,0.00041857,120]
[421953200,1778367043000,-494.00119257,0.00041857,120]
[421953204,1778367043000,-234.4104546,0.00041857,2]
[421953206,1778367043000,-177.89834118,0.00041857,2]
[421953208,1778367043000,-501.46264657,0.00041857,3]
[421953202,1778367043000,-550.0,0.00041857,2]
[421953219,1778367043000,-665.94801625,0.00041857,2]
[421953217,1778367043000,-677.69731214,0.00041857,2]
[421953214,1778367043000,-1057.96204692,0.00041857,2]
[421953212,1778367043000,-1309.20163512,0.00041857,2]
[421953210,1778367043000,-384.29781586,0.00041857,2]
[421953224,1778367043000,-219.9707813,0.00041857,2]
[421953221,1778367043000,-641.64710574,0.00041857,2]
[421953226,1778367043000,-1092.60367039,0.00041857,2]
[421953228,1778367043000,-2500.0,0.00041857,2]
[421953234,1778367043000,-934.31094114,0.00041857,2]
[421953232,1778367043000,-1100.0,0.00041857,2]
[421953241,1778367043000,-1625.90712222,0.00041857,2]
[421953238,1778367043000,-630.96424356,0.00041857,2]
[421953285,1778367043000,-468.19363538,0.00041857,2]
[421953237,1778367043000,-493.28684778,0.00041857,2]
[421953289,1778367043000,-180.0,0.00041857,2]
[421953352,1778367043000,-793.79,0.00041857,120]
[421953347,1778367043000,-793.79,0.00041857,120]
[421953356,1778367043000,-793.79,0.00041857,120]
[421953354,1778367043000,-793.79,0.00041857,120]
[421953358,1778367043000,-793.79,0.00041857,120]
[421953374,1778367043000,-1789.93,0.00041857,11]
[421953372,1778367043000,-517.47,0.00041857,120]
[421953378,1778367043000,-1789.93,0.00041857,11]
[421953360,1778367043000,-793.79,0.00041857,120]
[421953376,1778367043000,-517.47,0.00041857,120]
[421953362,1778367043000,-793.79,0.00041857,120]
[421953364,1778367043000,-793.79,0.00041857,120]
[421953368,1778367043000,-517.47,0.00041857,120]
[421953343,1778367043000,-793.79,0.00041857,120]
[421953366,1778367043000,-793.99681911,0.00041857,120]
[421953370,1778367043000,-517.47,0.00041857,120]
[421953382,1778367043000,-1789.93,0.00041857,11]
[421953401,1778367043000,-517.47,0.00041857,120]
[421953399,1778367043000,-1789.93,0.00041857,11]
[421953397,1778367043000,-517.47,0.00041857,120]
[421953403,1778367043000,-1789.93,0.00041857,11]
[421953384,1778367043000,-517.47,0.00041857,120]
[421953386,1778367043000,-1789.93,0.00041857,11]
[421953388,1778367043000,-517.47,0.00041857,120]
[421953394,1778367043000,-1789.93,0.00041857,11]
[421953406,1778367043000,-517.47,0.00041857,120]
[421953390,1778367043000,-1789.93,0.00041857,11]
[421953290,1778367043000,-500.0,0.00041857,2]
[421953380,1778367043000,-517.47,0.00041857,120]
[421953404,1778367043000,-1789.93,0.00041857,11]
[421953392,1778367043000,-517.47,0.00041857,120]
[421953339,1778367043000,-793.79,0.00041857,120]
[421953337,1778367043000,-793.79,0.00041857,120]
[421953291,1778367043000,-1990.0,0.00041857,2]
[421953300,1778367043000,-500.0,0.00041857,120]
[421953302,1778367043000,-500.0,0.00041857,120]
[421953303,1778367043000,-500.0,0.00041857,120]
[421953295,1778367043000,-500.0,0.00041857,120]
[421953292,1778367043000,-500.0,0.00041857,120]
[421953294,1778367043000,-3382.26,0.00041857,120]
[421953293,1778367043000,-529.5752608,0.00041857,120]
[421953306,1778367043000,-500.0,0.00041857,120]
[421953296,1778367043000,-500.0,0.00041857,120]
[421953310,1778367043000,-500.0,0.00041857,120]
[421953308,1778367043000,-500.0,0.00041857,120]
[421953319,1778367043000,-793.79,0.00041857,120]
[421953298,1778367043000,-500.0,0.00041857,120]
[421953314,1778367043000,-497.305,0.00041857,120]
[421953321,1778367043000,-793.79,0.00041857,120]
[421953341,1778367043000,-793.79,0.00041857,120]
[421953335,1778367043000,-793.79,0.00041857,120]
[421953333,1778367043000,-793.79,0.00041857,120]
[421953331,1778367043000,-793.79,0.00041857,120]
[421953350,1778367043000,-793.79,0.00041857,120]
[421953327,1778367043000,-793.79,0.00041857,120]
[421953323,1778367043000,-793.79,0.00041857,120]
[421953329,1778367043000,-793.79,0.00041857,120]
[421953312,1778367043000,-500.0,0.00041857,120]
[421953345,1778367043000,-793.79,0.00041857,120]
[421953325,1778367043000,-793.79,0.00041857,120]
[421953316,1778367043000,-2000.0,0.00041857,120]
[421953503,1778367044000,-500.0,0.00041857,14]
[421953464,1778367044000,-1789.93,0.00041857,11]
[421953478,1778367044000,-500.0,0.00041857,14]
[421953469,1778367044000,-500.0,0.00041857,14]
[421953483,1778367044000,-500.0,0.00041857,14]
[421953497,1778367044000,-500.0,0.00041857,14]
[421953495,1778367044000,-500.0,0.00041857,14]
[421953499,1778367044000,-500.0,0.00041857,14]
[421953486,1778367044000,-500.0,0.00041857,14]
[421953471,1778367044000,-500.0,0.00041857,14]
[421953466,1778367044000,-1789.97761121,0.00041857,11]
[421953513,1778367044000,-2264.4152594,0.00041857,120]
[421953488,1778367044000,-500.0,0.00041857,14]
[421953490,1778367044000,-500.0,0.00041857,14]
[421953506,1778367044000,-199.94975889,0.00041857,14]
[421953508,1778367044000,-2083.20369735,0.00041857,120]
[421953520,1778367044000,-2264.4152594,0.00041857,120]
[421953524,1778367044000,-2264.4152594,0.00041857,120]
[421953511,1778367044000,-2264.4152594,0.00041857,120]
[421953526,1778367044000,-2264.4152594,0.00041857,120]
[421953522,1778367044000,-2264.4152594,0.00041857,120]
[421953515,1778367044000,-2264.4152594,0.00041857,120]
[421953476,1778367044000,-500.0,0.00041857,14]
[421953517,1778367044000,-2264.4152594,0.00041857,120]
[421953492,1778367044000,-500.0,0.00041857,14]
[421953481,1778367044000,-500.0,0.00041857,14]
[421953427,1778367044000,-1789.93,0.00041857,11]
[421953456,1778367044000,-1789.93,0.00041857,11]
[421953528,1778367044000,-2264.4152594,0.00041857,120]
[421953410,1778367044000,-1789.93,0.00041857,11]
[421953408,1778367044000,-517.47,0.00041857,120]
[421953414,1778367044000,-1789.93,0.00041857,11]
[421953416,1778367044000,-517.47,0.00041857,120]
[421953418,1778367044000,-1789.93,0.00041857,11]
[421953420,1778367044000,-517.47,0.00041857,120]
[421953412,1778367044000,-517.47,0.00041857,120]
[421953433,1778367044000,-517.47,0.00041857,120]
[421953431,1778367044000,-1789.93,0.00041857,11]
[421953425,1778367044000,-517.47,0.00041857,120]
[421953422,1778367044000,-1789.93,0.00041857,11]
[421953429,1778367044000,-517.47,0.00041857,120]
[421953435,1778367044000,-1789.93,0.00041857,11]
[421953449,1778367044000,-1789.93,0.00041857,11]
[421953443,1778367044000,-1789.93,0.00041857,11]
[421953446,1778367044000,-517.47,0.00041857,120]
[421953447,1778367044000,-1789.93,0.00041857,11]
[421953455,1778367044000,-517.60993592,0.00041857,120]
[421953437,1778367044000,-517.47,0.00041857,120]
[421953439,1778367044000,-1789.93,0.00041857,11]
[421953441,1778367044000,-517.47,0.00041857,120]
[421953448,1778367044000,-517.47,0.00041857,120]
[421953453,1778367044000,-1789.93,0.00041857,11]
[421953451,1778367044000,-517.47,0.00041857,120]
[421953474,1778367044000,-500.0,0.00041857,14]
[421953531,1778367044000,-2264.4152594,0.00041857,120]
[421953542,1778367044000,-265.34420298,0.00041857,120]
[421953550,1778367044000,-2217.66,0.00041857,120]
[421953603,1778367044000,-427.8857454,0.00041857,14]
[421953591,1778367044000,-2217.66,0.00041857,120]
[421953593,1778367044000,-2217.66,0.00041857,120]
[421953607,1778367044000,-500.0,0.00041857,14]
[421953620,1778367044000,-500.0,0.00041857,14]
[421953624,1778367044000,-500.0,0.00041857,14]
[421953609,1778367044000,-500.0,0.00041857,14]
[421953622,1778367044000,-500.0,0.00041857,14]
[421953611,1778367044000,-500.0,0.00041857,14]
[421953628,1778367044000,-610.1234377,0.00041857,14]
[421953615,1778367044000,-500.0,0.00041857,14]
[421953613,1778367044000,-500.0,0.00041857,14]
[421953626,1778367044000,-500.0,0.00041857,14]
[421953617,1778367044000,-500.0,0.00041857,14]
[421953630,1778367044000,-763.17,0.00041857,14]
[421953635,1778367044000,-763.17,0.00041857,14]
[421953632,1778367044000,-763.17,0.00041857,14]
[421953637,1778367044000,-763.17,0.00041857,14]
[421953648,1778367044000,-763.17,0.00041857,14]
[421953651,1778367044000,-763.17,0.00041857,14]
[421953653,1778367044000,-763.17,0.00041857,14]
[421953639,1778367044000,-763.17,0.00041857,14]
[421953641,1778367044000,-763.17,0.00041857,14]
[421953533,1778367044000,-2264.41525939,0.00041857,120]
[421953644,1778367044000,-763.17,0.00041857,14]
[421953605,1778367044000,-500.0,0.00041857,14]
[421953600,1778367044000,-151.1165415,0.00041857,120]
[421953646,1778367044000,-763.17,0.00041857,14]
[421953585,1778367044000,-2217.66,0.00041857,120]
[421953589,1778367044000,-2217.66,0.00041857,120]
[421953552,1778367044000,-2217.66,0.00041857,120]
[421953540,1778367044000,-2264.41525939,0.00041857,120]
[421953538,1778367044000,-2264.41525939,0.00041857,120]
[421953546,1778367044000,-2217.66,0.00041857,120]
[421953548,1778367044000,-2217.66,0.00041857,120]
[421953556,1778367044000,-2217.66,0.00041857,120]
[421953554,1778367044000,-2217.66,0.00041857,120]
[421953558,1778367044000,-2217.66,0.00041857,120]
[421953560,1778367044000,-2217.66,0.00041857,120]
[421953562,1778367044000,-2217.66,0.00041857,120]
[421953536,1778367044000,-2264.41525939,0.00041857,120]
[421953569,1778367044000,-2217.66,0.00041857,120]
[421953587,1778367044000,-2217.66,0.00041857,120]
[421953576,1778367044000,-2217.66,0.00041857,120]
[421953596,1778367044000,-2217.72726935,0.00041857,120]
[421953598,1778367044000,-151.1165415,0.00041857,120]
[421953582,1778367044000,-2217.66,0.00041857,120]
[421953544,1778367044000,-624.48871777,0.00041857,14]
[421953571,1778367044000,-2217.66,0.00041857,120]
[421953573,1778367044000,-2217.66,0.00041857,120]
[421953564,1778367044000,-2217.66,0.00041857,120]
[421953567,1778367044000,-2217.66,0.00041857,120]
[421953580,1778367044000,-2217.66,0.00041857,120]
[421953578,1778367044000,-2217.66,0.00041857,120]
[421953711,1778367045000,-1948.41,0.00041857,60]
[421953713,1778367045000,-1948.41,0.00041857,60]
[421953724,1778367045000,-1948.41,0.00041857,60]
[421953718,1778367045000,-1948.41,0.00041857,60]
[421953728,1778367045000,-1948.41,0.00041857,60]
[421953720,1778367045000,-1948.41,0.00041857,60]
[421953722,1778367045000,-1948.41,0.00041857,60]
[421953726,1778367045000,-1948.41,0.00041857,60]
[421953715,1778367045000,-1948.41,0.00041857,60]
[421953732,1778367045000,-1948.49,0.00041857,60]
[421953747,1778367045000,-500.0,0.00041857,120]
[421953754,1778367045000,-500.0,0.00041857,120]
[421953730,1778367045000,-1948.41,0.00041857,60]
[421953736,1778367045000,-500.0,0.00041857,120]
[421953743,1778367045000,-500.0,0.00041857,120]
[421953749,1778367045000,-500.0,0.00041857,120]
[421953739,1778367045000,-500.0,0.00041857,120]
[421953745,1778367045000,-500.0,0.00041857,120]
[421953752,1778367045000,-500.0,0.00041857,120]
[421953756,1778367045000,-500.0,0.00041857,120]
[421953709,1778367045000,-1948.41,0.00041857,60]
[421953766,1778367045000,-500.0,0.00041857,12]
[421953741,1778367045000,-500.0,0.00041857,120]
[421953734,1778367045000,-500.0,0.00041857,120]
[421953681,1778367045000,-568.4424259,0.00041857,120]
[421953707,1778367045000,-1948.41,0.00041857,60]
[421953758,1778367045000,-500.0,0.00041857,120]
[421953655,1778367045000,-763.17,0.00041857,14]
[421953657,1778367045000,-763.17,0.00041857,14]
[421953660,1778367045000,-763.17,0.00041857,14]
[421953663,1778367045000,-763.17,0.00041857,14]
[421953665,1778367045000,-763.17,0.00041857,14]
[421953673,1778367045000,-763.17,0.00041857,14]
[421953675,1778367045000,-763.17,0.00041857,14]
[421953677,1778367045000,-763.17,0.00041857,14]
[421953670,1778367045000,-763.17,0.00041857,14]
[421953668,1778367045000,-763.17,0.00041857,14]